bitfinex/quotes_SOLUSD_20250806
["timestamp","ask_amount","ask_price","bid_price","bid_amount"]
[1754464105389,29.8183649,164.12,164.1,0.76]
[1754464106115,21.44,164.12,164.11,0.71]
[1754464106983,21.44,164.12,164.1,0.06]
[1754464107202,21.44,164.12,164.1,0.77]
[1754464108307,21.44,164.12,164.11,6.09347388]
[1754464110118,21.44,164.12,164.1,6.86373677]
[1754464110316,21.44,164.12,164.1,6.15373677]
[1754464110823,21.44,164.12,164.1,6.86373677]
[1754464111798,21.44,164.12,164.1,0.06]
[1754464112012,9.0583649,164.11,164.1,0.06]
[1754464112699,29.8183649,164.12,164.1,0.06]
[1754464113604,30.4983649,164.12,164.1,0.06]
[1754464115114,9.0583649,164.11,164.1,0.06]
[1754464115803,13.14501962,164.11,164.1,0.06]
[1754464116011,34.34470907,164.11,164.1,0.06]
[1754464118025,4.76665472,164.11,164.1,0.06]
[1754464118232,13.14501962,164.11,164.1,0.06]
[1754464125159,12.46501962,164.11,164.1,0.06]
[1754464125853,4.08665472,164.11,164.1,89.83999998]
[1754464126211,25.48665472,164.11,164.1,95.93384519]
[1754464128322,25.48665472,164.11,164.1,6.86384521]
[1754464131953,21.4,164.11,164.1,6.86384521]
[1754464132244,21.4,164.11,164.1,95.96384521]
[1754464135964,21.4,164.11,164.1,104.34221011]
[1754464138045,21.4,164.11,164.1,15.24221011]
[1754464139340,8.3783649,164.16,164.1,30.48442011]
[1754464139663,25.46451279,164.15,164.12,8.3783649]
[1754464139861,25.46451279,164.15,164.13,0.71]
[1754464139862,4.10451279,164.14,164.13,0.71]
[1754464140157,4.10451279,164.14,164.13,89.81]
[1754464140360,4.10451279,164.14,164.13,95.90273137]
[1754464140559,21.36,164.15,164.13,104.28109627]
[1754464140761,21.36,164.15,164.14,9.0883649]
[1754464141144,21.36,164.15,164.14,98.1883649]
[1754464141343,0.03,164.18,164.14,9.0883649]
[1754464141560,0.03,164.18,164.17,8.3783649]
[1754464142166,0.03,164.18,164.17,9.0883649]
[1754464142343,0.03,164.18,164.17,15.17961177]
[1754464142847,0.03,164.18,164.17,33.48066477]
[1754464143256,0.03,164.18,164.17,25.10229987]
[1754464143466,0.03,164.18,164.17,14.46961177]
[1754464143641,0.03,164.18,164.17,6.09124687]
[1754464144242,9.1083649,164.18,164.16,6.0915144]
[1754464144440,0.7,164.17,164.16,6.0915144]
[1754464145162,0.03,164.18,164.16,6.0915144]
[1754464145368,0.03,164.18,164.17,9.0883649]
[1754464145957,0.03,164.18,164.17,8.3783649]
[1754464146165,9.1083649,164.18,164.16,6.0915144]
[1754464146466,0.7,164.17,164.14,6.09236018]
[1754464146644,0.7,164.17,164.14,15.18072508]
[1754464146845,0.03,164.18,164.14,104.28072508]
[1754464147041,0.73,164.18,164.14,104.28072508]
[1754464147245,0.73,164.18,164.14,103.57072508]
[1754464147445,0.03,164.18,164.15,0.71]
[1754464148247,0.03,164.18,164.15,9.0883649]
[1754464148979,0.03,164.18,164.16,15.23998283]
[1754464151145,0.03,164.18,164.17,0.71]
[1754464152279,0.03,164.18,164.16,14.52998283]
[1754464152775,0.03,164.18,164.16,104.33998283]
[1754464153242,0.03,164.18,164.17,0.71]
[1754464153861,0.03,164.18,164.17,9.0883649]
[1754464156079,0.03,164.18,164.17,15.17961177]
[1754464156680,0.03,164.18,164.17,14.46961177]
[1754464157575,0.73,164.18,164.16,89.16]
[1754464157774,8.3783649,164.17,164.16,0.06]
[1754464158181,0.7,164.17,164.16,0.06]
[1754464158362,9.0783649,164.17,164.16,0.06]
[1754464161285,15.16961177,164.17,164.16,0.06]
[1754464162450,9.0783649,164.17,164.16,0.06]
[1754464162856,15.16961177,164.17,164.16,0.06]
[1754464163978,34.36073855,164.17,164.16,0.06]
[1754464166564,12.46327611,164.17,164.16,0.06]
[1754464167101,29.7183649,164.17,164.16,0.06]
[1754464170295,21.34,164.17,164.16,0.06]
[1754464171393,29.7183649,164.17,164.16,0.06]
[1754464171788,21.34,164.17,164.16,0.06]
[1754464172097,29.7183649,164.17,164.16,0.06]
[1754464172762,21.34,164.17,164.16,0.06]
[1754464172963,29.7183649,164.17,164.16,0.06]
[1754464173173,21.34,164.17,164.16,0.06]
[1754464173390,21.34,164.17,164.16,0.73]
[1754464173593,21.34,164.17,164.16,0.06]
[1754464174109,21.34,164.17,164.16,9.1083649]
[1754464174274,0.03,164.18,164.16,9.1083649]
[1754464174473,21.32,164.17,164.16,8.4383649]
[1754464174875,21.32,164.17,164.16,0.06]
[1754464175082,21.32,164.17,164.16,0.73]
[1754464175368,21.34,164.17,164.16,6.82161793]
[1754464176371,21.34,164.17,164.16,0.06]
[1754464178300,21.34,164.17,164.16,0.73]
[1754464179527,21.34,164.17,164.16,89.83]
[1754464179813,21.34,164.17,164.16,95.92161793]
[1754464180884,21.34,164.17,164.16,104.29998283]
[1754464182775,0.03,164.18,164.16,104.29998283]
[1754464183007,0.03,164.18,164.17,9.0483649]
[1754464183819,0.03,164.18,164.17,98.1483649]
[1754464184293,1e-08,164.18,164.17,24.15458047]
[1754464184495,1e-08,164.18,164.17,30.24582734]
[1754464187398,1e-08,164.18,164.17,48.54241534]
[1754464187613,1e-08,164.18,164.17,33.43619977]
[1754464187797,1e-08,164.18,164.17,6.09124687]
[1754464187996,0.71000001,164.18,164.16,6.15150567]
[1754464188215,0.71,164.17,164.16,6.15150567]
[1754464188401,0.71,164.17,164.16,0.06]
[1754464189319,1e-08,164.18,164.16,0.06]
[1754464189522,0.71000001,164.18,164.16,0.06]
[1754464191010,0.71000001,164.18,164.16,6.15161793]
[1754464192099,0.71000001,164.18,164.16,0.06]
[1754464192805,0.71,164.17,164.16,0.06]
[1754464193537,8.37836491,164.18,164.16,0.06]
[1754464193701,1e-08,164.18,164.16,0.06]
[1754464194201,0.71000001,164.18,164.16,0.06]
[1754464194619,9.08836491,164.18,164.16,0.06]
[1754464194823,0.71,164.17,164.16,0.06]
[1754464195605,8.37836491,164.18,164.16,0.06]
[1754464196201,9.09836491,164.18,164.16,0.06]
[1754464197128,13.19638687,164.18,164.16,89.16]
[1754464197431,0.72,164.17,164.16,89.16]
[1754464198827,12.47638687,164.18,164.16,89.16]
[1754464199034,13.19638687,164.18,164.16,95.2516165]
[1754464199209,1e-08,164.18,164.16,95.2516165]
[1754464199408,1e-08,164.18,164.16,95.9316165]
[1754464200329,1e-08,164.18,164.16,89.16]
[1754464200630,0.72,164.17,164.16,89.16]
[1754464201833,9.0983649,164.17,164.16,89.16]
[1754464202517,13.19703288,164.17,164.16,89.16]
[1754464202901,4.09866798,164.17,164.16,95.25161793]
[1754464203103,4.09866799,164.18,164.16,95.93161793]
[1754464203331,8.37836491,164.18,164.16,89.16]
[1754464203533,13.19788815,164.17,164.16,89.16]
[1754464204313,4.81952325,164.17,164.16,89.16]
[1754464204513,12.47788815,164.17,164.16,89.16]
[1754464204833,1e-08,164.18,164.16,95.93161793]
[1754464205027,1e-08,164.18,164.16,95.25161793]
[1754464205231,1e-08,164.18,164.17,0.68]
[1754464205905,1e-08,164.18,164.17,9.0583649]
[1754464206337,1e-08,164.18,164.17,15.14961177]
[1754464206518,1e-08,164.18,164.17,104.24961177]
[1754464208839,1e-08,164.18,164.17,15.14961177]
[1754464209025,1e-08,164.18,164.17,30.25582734]
[1754464209564,1e-08,164.18,164.17,30.86495202]
[1754464210315,1e-08,164.2,164.19,41.10621557]
[1754464210510,1e-08,164.2,164.19,70.80458047]
[1754464210834,1e-08,164.2,164.19,71.48458047]
[1754464211036,1e-08,164.2,164.19,60.56250076]
[1754464212641,1e-08,164.2,164.19,52.18413586]
[1754464215740,1e-08,164.2,164.19,54.62308586]
[1754464217970,1e-08,164.2,164.19,63.00145076]
[1754464218547,1e-08,164.23,164.22,41.10621557]
[1754464218750,1e-08,164.23,164.22,70.78458047]
[1754464219049,1e-08,164.23,164.22,71.46458047]
[1754464219252,1e-08,164.23,164.22,73.90338147]
[1754464219432,0.1,164.25,164.23,104.20621556]
[1754464219637,0.1,164.25,164.24,44.78458047]
[1754464219839,0.1,164.25,164.24,50.87323122]
[1754464220137,0.1,164.25,164.24,51.55323122]
[1754464221365,0.1,164.25,164.24,61.95219122]
[1754464221956,9.67896055,164.29,164.24,77.1738181]
[1754464222148,9.67896055,164.29,164.28,8.3783649]
[1754464222337,9.67896055,164.29,164.28,97.47836489]
[1754464222541,0.72,164.31,164.28,97.47836489]
[1754464222864,0.72,164.31,164.3,8.3783649]
[1754464223160,4.08239377,164.34,164.28,89.09999999]
[1754464223364,0.72,164.3,164.28,97.47836489]
[1754464223656,0.72,164.3,164.29,8.3783649]
[1754464223835,0.72,164.32,164.3,6.08642726]
[1754464224036,0.72,164.31,164.3,6.08642726]
[1754464224345,0.72,164.31,164.29,24.37329085]
[1754464224849,8.3783649,164.33,164.29,32.75165575]
[1754464224850,0.72,164.3,164.29,32.75165575]
[1754464225281,0.72,164.33,164.29,137.74865007]
[1754464225442,0.72,164.33,164.31,8.3783649]
[1754464225631,0.72,164.33,164.3,8.3783649]
[1754464225838,0.72,164.32,164.31,6.08605684]
[1754464227082,0.72,164.33,164.31,6.08605684]
[1754464227565,0.72,164.33,164.31,14.46442174]
[1754464229470,0.72,164.33,164.31,32.74874274]
[1754464229662,0.72,164.33,164.31,121.84874273]
[1754464229975,0.72,164.33,164.31,113.47037783]
[1754464230473,0.72,164.32,164.31,113.47037783]
[1754464231262,0.1,164.35,164.31,122.49874273]
[1754464231577,0.82,164.35,164.31,122.49874273]
[1754464231764,0.72,164.34,164.31,122.49874273]
[1754464231946,0.72,164.34,164.31,121.84874273]
[1754464232771,0.72,164.33,164.31,95.18605683]
[1754464232974,8.4783649,164.35,164.32,8.378365]
[1754464233175,0.1,164.35,164.32,8.378365]
[1754464233474,0.72,164.34,164.32,8.378365]
[1754464233947,0.72,164.34,164.33,6.08531613]
[1754464234559,0.1,164.35,164.33,6.08531613]
[1754464234963,0.1,164.35,164.33,15.11368103]
[1754464235163,0.1,164.35,164.34,9.0283649]
[1754464236182,0.1,164.35,164.34,104.21331073]
[1754464236355,0.1,164.35,164.34,125.51331073]
[1754464236555,0.1,164.35,164.34,104.21331073]
[1754464236761,1e-08,164.35,164.34,119.3195263]
[1754464237767,1e-08,164.35,164.34,104.21331073]
[1754464237968,1e-08,164.35,164.34,119.3195263]
[1754464238270,1e-08,164.35,164.34,95.18494583]
[1754464238877,0.72000001,164.35,164.34,95.18494583]
[1754464239567,1e-08,164.35,164.34,103.56331073]
[1754464239775,1e-08,164.35,164.34,104.21331073]
[1754464241081,1e-08,164.35,164.34,103.56331073]
[1754464243281,0.72000001,164.35,164.34,95.18494583]
[1754464248373,1e-08,164.35,164.34,95.18494583]
[1754464248992,0.72000001,164.35,164.34,95.18494583]
[1754464250993,1e-08,164.35,164.34,95.18494583]
[1754464251200,1e-08,164.35,164.34,99.72816883]
[1754464251582,1e-08,164.35,164.34,108.10653373]
[1754464252386,1e-08,164.35,164.34,107.45653373]
[1754464252903,1e-08,164.35,164.34,108.10653373]
[1754464253801,1e-08,164.35,164.34,129.38653373]
[1754464253978,1e-08,164.35,164.34,144.4927493]
[1754464254469,1e-08,164.35,164.34,108.10653373]
[1754464254675,1e-08,164.35,164.34,129.40653373]
[1754464255609,1e-08,164.35,164.34,144.5127493]
[1754464260699,1e-08,164.37,164.36,15.10621557]
[1754464260887,0.67,164.41,164.37,89.09999998]
[1754464261090,0.67,164.41,164.38,0.67]
[1754464261297,0.67,164.41,164.39,8.3783649]
[1754464261502,0.67,164.41,164.4,6.08272506]
[1754464262892,21.3,164.42,164.4,6.08272506]
[1754464263091,21.97,164.42,164.4,95.18272504]
[1754464263502,21.97,164.42,164.4,113.45702204]
[1754464264018,21.3,164.42,164.4,113.45702204]
[1754464264314,0.67,164.41,164.4,95.18272504]
[1754464265512,21.3,164.42,164.4,95.18272504]
[1754464265989,21.3,164.42,164.4,95.85272504]
[1754464266191,21.97,164.42,164.4,95.18272504]
[1754464266393,21.3,164.42,164.4,95.18272504]
[1754464266589,21.3,164.42,164.41,8.3783649]
[1754464266827,9.09844637,164.44,164.41,97.47836488]
[1754464267126,0.67,164.43,164.41,89.09999998]
[1754464267286,0.67,164.42,164.41,89.09999998]
[1754464267613,17.50681127,164.44,164.41,89.09999998]
[1754464267912,0.67,164.43,164.41,89.09999998]
[1754464268716,16.83681127,164.44,164.42,6.08198515]
[1754464269090,0.67,164.43,164.42,6.08198515]
[1754464271094,0.67,164.43,164.42,95.18198513]
[1754464272822,9.0783649,164.44,164.42,95.18198513]
[1754464273022,0.67,164.43,164.42,95.18198513]
[1754464273224,0.03,164.44,164.42,95.18198513]
[1754464273631,0.67,164.43,164.42,95.18198513]
[1754464276408,9.0483649,164.43,164.42,89.09999998]
[1754464277605,0.67,164.43,164.42,89.09999998]
[1754464277836,9.0483649,164.43,164.42,89.09999998]
[1754464278038,13.13580211,164.43,164.42,89.09999998]
[1754464278210,9.0483649,164.43,164.42,89.09999998]
[1754464278417,13.13580211,164.43,164.38,95.1833924]
[1754464278735,8.3783649,164.41,164.38,95.1833924]
[1754464279108,9.0483649,164.41,164.38,95.1833924]
[1754464279434,9.0483649,164.42,164.38,95.8533924]
[1754464279657,9.0483649,164.41,164.38,95.1833924]
[1754464280143,0.67,164.4,164.38,95.1833924]
[1754464280322,9.0483649,164.41,164.38,95.1833924]
[1754464280636,8.3783649,164.41,164.39,0.67]
[1754464281045,8.3783649,164.41,164.38,95.1833924]
[1754464281243,13.13855175,164.41,164.38,95.1833924]
[1754464281425,9.0483649,164.41,164.38,95.8533924]
[1754464282127,13.13969822,164.41,164.38,95.8533924]
[1754464282331,9.0483649,164.4,164.38,95.1833924]
[1754464282531,9.0483649,164.39,164.38,89.09999998]
[1754464283144,9.0483649,164.39,164.36,6.0840787]
[1754464283321,8.3783649,164.37,164.36,95.1840787]
[1754464283516,9.0483649,164.38,164.36,95.1840787]
[1754464283826,8.3783649,164.37,164.35,6.08450399]
[1754464284032,8.3783649,164.36,164.35,6.08450399]
[1754464284220,9.0483649,164.36,164.34,0.06]
[1754464284534,0.67,164.36,164.34,0.06]
[1754464284729,8.3783649,164.36,164.34,0.73]
[1754464285238,8.3783649,164.36,164.34,0.06]
[1754464285438,9.0483649,164.36,164.34,0.06]
[1754464286235,8.3783649,164.36,164.34,0.06]
[1754464286434,8.3783649,164.36,164.34,6.14494584]
[1754464287631,9.0483649,164.36,164.34,6.14494584]
[1754464287938,8.3783649,164.36,164.34,6.14494584]
[1754464288123,8.3783649,164.36,164.34,6.85494584]
[1754464288325,8.3783649,164.36,164.34,0.06]
[1754464288526,8.3783649,164.35,164.34,0.06]
[1754464289332,8.3783649,164.35,164.34,89.16]
[1754464289532,8.3783649,164.35,164.34,95.24494584]
[1754464290053,0.67,164.39,164.34,95.95494584]
[1754464290351,8.3783649,164.38,164.35,0.71]
[1754464290730,8.3783649,164.38,164.36,0.71]
[1754464291036,8.3783649,164.37,164.34,111.16731044]
[1754464291237,9.0483649,164.37,164.34,111.16731044]
[1754464291548,8.3783649,164.37,164.35,0.71]
[1754464291847,8.3783649,164.37,164.34,111.16731044]
[1754464292220,8.3783649,164.37,164.35,0.71]
[1754464292841,8.3783649,164.37,164.34,110.45731044]
[1754464293147,9.0483649,164.37,164.34,95.24494584]
[1754464293351,9.0483649,164.37,164.34,95.95494584]
[1754464293653,8.3783649,164.37,164.35,0.71]
[1754464294628,0.67,164.4,164.36,0.71]
[1754464294933,8.3783649,164.38,164.36,89.1]
[1754464295340,8.3783649,164.38,164.36,89.81]
[1754464295920,8.3783649,164.38,164.37,6.08383524]
[1754464296426,4.09222056,164.39,164.37,6.79383524]
[1754464296627,4.09222056,164.39,164.38,0.71]
[1754464296857,4.09222056,164.39,164.38,89.81]
[1754464297326,29.6583649,164.42,164.38,89.81]
[1754464297527,13.14132053,164.41,164.38,89.1]
[1754464297732,9.0483649,164.4,164.38,89.1]
[1754464298048,9.0483649,164.4,164.39,6.08309507]
[1754464298621,13.14177576,164.4,164.39,6.08309507]
[1754464298830,9.0483649,164.4,164.39,6.08309507]
[1754464299694,9.0483649,164.4,164.37,6.08357618]
[1754464299695,13.14184172,164.4,164.37,6.08357618]
[1754464299838,8.3783649,164.38,164.37,6.08357618]
[1754464300028,9.0483649,164.38,164.37,6.08357618]
[1754464300229,9.0483649,164.38,164.36,95.18405533]
[1754464300458,9.0483649,164.37,164.36,6.08405533]
[1754464300667,9.0483649,164.37,164.34,95.24480788]
[1754464300835,8.3783649,164.35,164.34,6.14480788]
[1754464301630,8.3783649,164.36,164.34,0.77]
[1754464301852,8.3783649,164.37,164.35,0.71]
[1754464302656,8.3783649,164.37,164.34,0.06]
[1754464302833,8.3783649,164.37,164.34,0.77]
[1754464303638,8.3783649,164.37,164.35,6.0845756]
[1754464304571,8.3783649,164.36,164.35,6.0845756]
[1754464305135,0.67,164.38,164.35,6.0845756]
[1754464305538,8.3783649,164.36,164.35,6.0845756]
[1754464305740,9.0483649,164.36,164.34,6.14483527]
[1754464306047,9.0483649,164.35,164.34,0.06]
[1754464307180,29.6583649,164.36,164.34,6.85494584]
[1754464307464,21.28,164.36,164.34,6.85494584]
[1754464307662,5.11927992,164.41,164.35,9.0883649]
[1754464307840,5.11927992,164.41,164.36,9.0883649]
[1754464307841,4.09107016,164.4,164.36,9.0883649]
[1754464308180,8.3783649,164.4,164.37,0.71]
[1754464308745,12.469243,164.4,164.37,0.71]
[1754464308953,13.139243,164.4,164.37,0.71]
[1754464309145,8.3783649,164.4,164.37,0.71]
[1754464309544,12.46953,164.4,164.37,0.71]
[1754464309739,8.3783649,164.4,164.38,6.08346514]
[1754464309941,9.0483649,164.39,164.36,6.0842054]
[1754464310152,21.31,164.43,164.36,6.0842054]
[1754464310153,8.3783649,164.37,164.36,6.0842054]
[1754464310562,9.0483649,164.37,164.36,6.0842054]
[1754464310776,0.67,164.39,164.36,6.0842054]
[1754464310971,8.3783649,164.38,164.36,6.0842054]
[1754464311283,4.09166028,164.42,164.36,6.0842054]
[1754464311284,8.3783649,164.4,164.37,0.71]
[1754464311596,4.76166028,164.41,164.36,6.0842054]
[1754464311597,12.47002518,164.39,164.36,6.0842054]
[1754464311755,8.3783649,164.39,164.36,6.0842054]
[1754464311961,9.0483649,164.39,164.36,6.0842054]
[1754464312280,13.14023998,164.39,164.36,6.0842054]
[1754464313470,4.09187508,164.39,164.37,0.71]
[1754464314291,12.50023998,164.4,164.37,0.71]
[1754464314745,4.12187508,164.4,164.38,0.71]
[1754464315074,0.03,164.4,164.38,0.71]
[1754464315277,0.03,164.4,164.39,6.79309507]
[1754464315578,0.03,164.4,164.39,95.89309507]
[1754464316444,0.03,164.4,164.39,95.18309507]
[1754464318055,0.73,164.4,164.39,95.18309507]
[1754464318259,0.03,164.4,164.39,95.18309507]
[1754464319876,9.1083649,164.4,164.39,95.18309507]
[1754464321354,9.1083649,164.4,164.39,6.08309507]
[1754464321569,0.03,164.4,164.39,6.08309507]
[1754464321777,0.03,164.4,164.39,6.76309507]
[1754464323460,0.03,164.4,164.39,6.08309507]
[1754464324176,0.03,164.4,164.39,6.76309507]
[1754464325090,0.03,164.4,164.38,6.08346514]
[1754464325394,0.03,164.4,164.39,18.276524]
[1754464327236,8.4083649,164.4,164.39,24.35961907]
[1754464327514,8.4083649,164.4,164.39,113.45961907]
[1754464327888,9.1083649,164.4,164.39,95.18309507]
[1754464328215,13.20513575,164.4,164.39,89.1]
[1754464328815,12.50526422,164.4,164.39,95.86309507]
[1754464329014,12.50526422,164.4,164.39,95.18309507]
[1754464329181,13.20526422,164.4,164.39,95.18309507]
[1754464329584,13.20526422,164.4,164.39,89.1]
[1754464329808,13.20526422,164.4,164.38,18.277637]
[1754464329809,13.20526422,164.4,164.35,26.0]
[1754464330016,4.79689932,164.39,164.36,6.08417687]
[1754464330328,8.3783649,164.37,164.36,6.08417687]
[1754464331612,12.47652512,164.38,164.36,6.08417687]
[1754464331813,8.3783649,164.38,164.36,6.08417687]
[1754464332015,8.3783649,164.38,164.36,6.76417687]
[1754464333111,8.3783649,164.38,164.36,6.08417687]
[1754464333313,0.7,164.39,164.36,6.08417687]
[1754464333626,12.47699978,164.38,164.36,6.08417687]
[1754464333941,8.3783649,164.38,164.36,24.36515587]
[1754464334937,8.3783649,164.38,164.36,25.04515587]
[1754464336044,8.3783649,164.38,164.36,6.08417687]
[1754464336248,8.3783649,164.37,164.36,6.08417687]
[1754464336955,0.7,164.38,164.36,14.46254187]
[1754464337248,8.3783649,164.37,164.36,14.46254187]
[1754464337641,0.73,164.4,164.36,14.46254187]
[1754464337642,8.3783649,164.38,164.36,14.46254187]
[1754464338167,0.03,164.4,164.36,15.14254187]
[1754464338482,12.47721662,164.39,164.36,15.14254187]
[1754464338636,5.33582207,164.39,164.36,15.14254187]
[1754464339162,5.33582207,164.39,164.36,104.24254187]
[1754464339469,0.03,164.4,164.37,0.68]
[1754464339627,4.09863838,164.39,164.37,0.68]
[1754464339827,0.03,164.4,164.38,5.33582207]
[1754464340157,0.03,164.4,164.39,5.33582207]
[1754464340543,0.03,164.4,164.39,6.01582207]
[1754464340853,0.03,164.4,164.39,9.01231717]
[1754464341232,0.03,164.42,164.4,6.08272506]
[1754464341432,0.03,164.43,164.41,8.33231717]
[1754464341626,0.03,164.43,164.4,6.08272506]
[1754464341833,0.03,164.43,164.4,6.76272506]
[1754464342059,0.03,164.43,164.41,0.68]
[1754464342356,0.03,164.43,164.42,8.33231717]
[1754464342656,0.03,164.43,164.42,34.33231717]
[1754464342859,0.03,164.43,164.42,35.01231717]
[1754464343232,0.03,164.43,164.42,32.08198515]
[1754464343659,0.03,164.43,164.42,6.08198515]
[1754464344169,0.03,164.43,164.42,24.35405615]
[1754464344462,0.03,164.43,164.42,33.36637332]
[1754464346445,0.03,164.43,164.42,25.03405615]
[1754464346641,0.03,164.43,164.42,33.36637332]
[1754464347550,0.03,164.43,164.42,33.37637332]
[1754464348069,0.03,164.43,164.42,122.47637332]
[1754464352788,0.03,164.43,164.42,143.75637332]
[1754464353226,4.08738516,164.49,164.43,89.07]
[1754464353517,22.0,164.5,164.46,8.33231717]
[1754464353677,22.0,164.5,164.47,0.69]
[1754464353876,22.0,164.5,164.47,89.76]
[1754464354078,0.72,164.49,164.47,89.07]
[1754464354429,0.72,164.49,164.48,18.266509]
[1754464354571,0.72,164.51,164.48,18.266509]
[1754464354777,12.41639026,164.53,164.48,18.956509]
[1754464355073,30.25231717,164.54,164.5,8.33231717]
[1754464355294,0.72,164.52,164.5,6.07878806]
[1754464355601,9.05231717,164.54,164.5,6.07878806]
[1754464355806,0.72,164.53,164.5,14.41110523]
[1754464356140,0.72,164.53,164.5,15.10110523]
[1754464356617,0.72,164.53,164.5,6.76878806]
[1754464356809,0.72,164.52,164.5,6.07878806]
[1754464357478,0.72,164.51,164.49,6.07933382]
[1754464359117,0.72,164.5,164.48,113.41616246]
[1754464359287,8.33231717,164.49,164.48,18.266509]
[1754464359495,0.72,164.49,164.46,6.08037393]
[1754464359805,0.72,164.48,164.47,8.332317]
[1754464360211,0.72,164.5,164.47,8.332317]
[1754464360416,8.33231717,164.48,164.47,8.332317]
[1754464360612,9.05231717,164.49,164.47,8.332317]
[1754464360820,9.05231717,164.48,164.47,8.332317]
[1754464361210,0.72,164.48,164.47,14.41245319]
[1754464361420,8.33231717,164.49,164.47,14.41245319]
[1754464361622,9.05231717,164.49,164.47,14.41245319]
[1754464362228,0.72,164.5,164.47,14.41245319]
[1754464362605,9.05231717,164.5,164.47,14.41245319]
[1754464362825,8.33231717,164.51,164.47,15.10245319]
[1754464363139,9.05231717,164.51,164.47,111.81477036]
[1754464363302,0.72,164.53,164.49,8.33231717]
[1754464363835,0.72,164.53,164.47,118.68279367]
[1754464363836,0.72,164.53,164.5,0.69]
[1754464364214,9.05231717,164.53,164.5,0.69]
[1754464364618,9.05231717,164.53,164.48,8.33231717]
[1754464364821,9.05231717,164.53,164.5,6.07902735]
[1754464365017,21.31,164.55,164.5,6.07902735]
[1754464365018,8.33231717,164.54,164.5,6.76902735]
[1754464365196,9.05231717,164.54,164.51,0.69]
[1754464365418,0.72,164.54,164.51,9.02231717]
[1754464365625,0.03,164.55,164.51,26.59548917]
[1754464366003,0.75,164.55,164.51,18.953172]
[1754464366320,0.75,164.55,164.51,27.28548917]
[1754464366713,9.08231717,164.55,164.51,27.28548917]
[1754464367329,0.75,164.55,164.52,6.07828835]
[1754464367520,0.03,164.55,164.52,14.41060552]
[1754464367832,0.75,164.55,164.52,6.76828835]
[1754464368418,0.72,164.54,164.52,6.07828835]
[1754464368614,0.72,164.53,164.52,6.07828835]
[1754464368826,0.72,164.53,164.51,24.34179628]
[1754464369139,9.05231717,164.52,164.5,6.0788922]
[1754464369343,9.05231717,164.52,164.5,15.20034]
[1754464369734,8.33231717,164.51,164.5,15.20034]
[1754464369918,8.33231717,164.51,164.48,6.07972265]
[1754464369919,9.05231717,164.51,164.48,6.07972265]
[1754464370126,0.03,164.55,164.48,6.07972265]
[1754464370127,9.05231717,164.5,164.48,24.34623065]
[1754464370316,9.05231717,164.5,164.48,113.41623065]
[1754464370517,8.33231717,164.51,164.48,114.10623065]
[1754464370830,8.33231717,164.53,164.49,0.69]
[1754464371214,9.05231717,164.54,164.5,6.76882756]
[1754464371433,9.05231717,164.53,164.5,6.76882756]
[1754464371911,9.05231717,164.53,164.5,6.07882756]
[1754464372241,0.72,164.52,164.5,6.07882756]
[1754464373414,8.33231717,164.52,164.49,95.14932775]
[1754464373642,9.05231717,164.51,164.49,95.14932775]
[1754464374330,6.07759051,164.54,164.49,95.14932775]
[1754464374331,8.33231717,164.52,164.49,95.14932775]
[1754464374543,8.33231717,164.52,164.49,95.83932775]
[1754464374734,0.72,164.54,164.5,0.69]
[1754464374940,8.33231717,164.52,164.5,0.69]
[1754464375251,0.72,164.53,164.5,0.69]
[1754464375455,9.05231717,164.53,164.49,95.14932775]
[1754464375759,8.33231717,164.51,164.49,89.07]
[1754464376065,6.07799363,164.53,164.49,89.07]
[1754464376066,0.67,164.53,164.49,95.14939692]
[1754464376227,8.33231717,164.52,164.49,95.80939692]
[1754464376841,0.67,164.53,164.49,95.80939692]
[1754464376842,8.33231717,164.53,164.5,0.66]
[1754464377438,9.00231717,164.52,164.49,89.07]
[1754464377645,0.67,164.51,164.49,95.14922011]